[Event "3rd VIZAG GM-Open 2022"]
[Site "Visakapatnam"]
[Date "2022.06.13"]
[Round "4.1"]
[White "Amonatov, Farrukh"]
[Black "Jain Kashish Manoj"]
[Result "1-0"]
[ECO "B57"]
[WhiteElo "2622"]
[BlackElo "2271"]
[Annotator "TA"]
[PlyCount "95"]
[EventDate "2022.06.13"]
[EventType "swiss"]
[EventCountry "IND"]
[SourceTitle "playchess.com"]
[Source "ChessBase"]
[SourceQuality "1"]
[TimeControl "5400+30"]

{[%evp 14,94,16,17,11,18,17,0,0,7,10,1,17,7,19,7,4,4,9,14,9,9,29,23,17,14,66,62,86,85,86,72,89,94,88,87,87,87,93,78,100,77,100,97,105,97,112,112,112,112,141,145,141,111,111,111,111,111,114,111,257,210,602,571,602,602,602,602,602,460,593,591,609,602,602,597,602,410,585,558,29985,29986,29999]} 1. e4 {[%emt 0:00:04]} c5 {[%emt 0:00:30]} 2. Nf3 {[%emt 0:00:07]} d6 {[%emt 0:00:06]} 3. d4 {[%emt 0:00:04]} cxd4 {[%emt 0:00:07]} 4. Nxd4 {[%emt 0:00:05]} Nf6 {[%emt 0:00:08]} 5. Nc3 {[%emt 0:00:05]} Nc6 {[%emt 0:00:06]} 6. Bc4 {[%emt 0:01:07]} Bd7 {[%emt 0:00:14]} 7. Bb3 {[%emt 0:00:10]} g6 {[%emt 0:00:19]} 8. O-O {[%emt 0:04:13]} Bg7 {[%emt 0:01:40] B57: Classical Sicilian: Sozin with 6...Qb6.} 9. Nxc6 {[%emt 0:01:06]} Bxc6 {[%emt 0:02:45]} 10. Re1 {[%emt 0:00:31]} O-O {[%emt 0:00:48] The position is equal.} 11. Bg5 {[%emt 0:01:27]} Nd7 {[%emt 0:13:44]} 12. Nd5 {[%emt 0:01:59]} Bxd5 {[%emt 0:03:35] [#]} 13. exd5 $146 {[%emt 0:00:07]} ({Predecessor:} 13. Bxd5 Bxb2 14. Rb1 Bf6 15. Bh6 Re8 16. Rxb7 Nc5 17. Rb1 Rc8 18. Qf3 e6 19. Bb3 {½-½ (44) Schaefer,M (2399)-Polzin,R (2469) Rogaska Slatina 2011}) 13... Bf6 {[%emt 0:00:34]} 14. Bh6 {[%emt 0:00:18]} Bxb2 {[%emt 0:01:40]} 15. Bxf8 {[%emt 0:00:07]} Kxf8 {[%emt 0:02:08]} 16. Rb1 {[%emt 1:27:00]} Bf6 {[%emt 0:00:15]} 17. c4 {[%emt 0:00:00]} Nc5 {[%emt 0:04:36]} 18. Qd2 {[%emt 0:00:00]} Kg7 {[%emt 0:01:01]} 19. g3 {[%emt 0:00:00]} a5 {[%emt 0:04:16]} ({Black should try} 19... Rc8 $11) 20. Bc2 $14 {[%emt 0:00:00]} a4 {[%emt 0:03:29]} 21. h4 {[%emt 0:00:00] White is more active.} Qa5 {[%emt 0:07:53]} 22. Qe3 {[%emt 0:00:00]} Re8 {[%emt 0:01:05]} 23. Rb5 {[%emt 0:00:00]} Qc3 {[%emt 0:00:49]} 24. Qxc3 {[%emt 0:00:00]} Bxc3 {[%emt 0:00:03]} 25. Re3 {[%emt 0:00:00]} Bd4 {[%emt 0:01:52]} 26. Re2 {[%emt 0:00:00]} Bc3 {[%emt 0:08:14] Inhibits Ra5.} 27. Kg2 {[%emt 0:00:00]} Kf8 {[%emt 0:00:52]} 28. f4 {[%emt 0:00:00]} Ra8 {[%emt 0:05:37]} 29. g4 {[%emt 0:00:00]} h6 {[%emt 0:05:21]} 30. g5 {[%emt 0:00:00]} hxg5 {[%emt 0:01:10]} 31. hxg5 {[%emt 0:00:00]} a3 {[%emt 0:01:39]} 32. Rb1 {[%emt 0:00:00]} Ra6 {[%emt 0:01:56]} 33. Rf1 {[%emt 0:00:00]} Rb6 {[%emt 0:01:52]} 34. Rf3 {[%emt 0:00:00]} Bb2 {[%emt 0:00:16]} 35. f5 {[%emt 0:00:00]} gxf5 {[%emt 0:00:09]} 36. Bxf5 {[%emt 0:00:00]} Bc1 {[%emt 0:09:26] This move loses the game for Black.} (36... Rb4 $16) 37. Be6 {[%emt 0:00:00]} Rb2 $2 {[%emt 0:01:56]} (37... Kg7) 38. Rxf7+ $18 {[%emt 0:00:00]} Ke8 {[%emt 0:00:08]} 39. Kf1 {[%emt 0:00:00] [#] aiming for g6.} Bxg5 {[%emt 0:06:13]} 40. Rg7 {[%emt 0:00:00][%cal Rg7g8]} Bh6 {[%emt 0:00:09]} 41. Rg8+ {[%emt 0:00:00]} Bf8 {[%emt 0:00:02]} 42. Re3 {[%emt 0:00:00]} Rxa2 {[%emt 0:01:40]} 43. Rf3 {[%emt 0:00:00][%csl Gf3][%cal Rg8f8] [#]} Ra1+ {[%emt 0:00:23]} 44. Kg2 {[%emt 0:00:00][%csl Gf3][%cal Rg8f8]} Kd8 {[%emt 0:00:25]} 45. Rgxf8+ {[%emt 0:00:00]} Kc7 {[%emt 0:00:01]} 46. Ra8 {[%emt 0:00:00]} Na6 {[%emt 0:00:23]} 47. Rb3 {[%emt 0:00:00][%csl Ge6][%cal Ra8c8]} a2 {[%emt 0:00:27]} 48. Rc8# {[%emt 0:00:00] Weighted Error Value: White=0.04 (flawless) /Black=0.43} 1-0

[Event "3rd VIZAG GM-Open 2022"]
[Site "Visakapatnam"]
[Date "2022.06.13"]
[Round "4.2"]
[White "Konguvel, Ponnuswamy"]
[Black "Nigmatov, Ortik"]
[Result "1-0"]
[ECO "C78"]
[WhiteElo "2331"]
[BlackElo "2463"]
[Annotator "TA"]
[PlyCount "85"]
[EventDate "2022.06.13"]
[EventType "swiss"]
[EventCountry "IND"]
[SourceTitle "playchess.com"]
[Source "ChessBase"]
[SourceQuality "1"]
[TimeControl "5400+30"]

{[%evp 16,85,39,0,0,0,9,14,21,14,43,40,37,35,49,0,0,0,0,-6,-6,-1,-11,0,0,-11,0,0,0,-9,42,52,27,29,39,25,28,19,45,33,83,96,160,155,227,213,213,200,295,265,319,244,452,455,462,462,462,451,538,531,512,553,530,501,648,651,645,639,752,750,673,643]} 1. e4 {[%emt 0:00:05]} e5 {[%emt 0:00:05]} 2. Nf3 {[%emt 0:00:09]} Nc6 {[%emt 0:00:05]} 3. Bb5 {[%emt 0:00:16][%cal Bf1b5,Bb5a4,Ba4b3][%mdl 32]} a6 {[%emt 0:00:09]} 4. Ba4 {[%emt 0:00:06]} Nf6 {[%emt 0:00:07]} 5. O-O {[%emt 0:00:21]} Bc5 {[%emt 0:00:04]} 6. c3 {[%emt 0:00:22]} b5 {[%emt 0:00:06]} 7. Bb3 {[%emt 0:00:58]} d6 {[%emt 0:00:07]} 8. d4 {[%emt 0:01:23]} Bb6 {[%emt 0:00:04]} 9. Be3 $1 {[%emt 0:01:15][%mdl 4] is more profitable than 9.a4 at the moment.} (9. a4 $5 {[%cal Ra4b5]}) 9... O-O {[%emt 0:00:16] C78: Ruy Lopez: Archangelsk and Möller Defences.} 10. Nbd2 {[%emt 0:00:48]} Re8 {[%emt 0:00:05]} 11. Re1 {[%emt 0:07:47]} Na5 {[%emt 0:00:11] The position is equal.} 12. Bc2 {[%emt 0:00:44] [#]} Ng4 $146 {[%emt 0:00:08]} ({Predecessor:} 12... c5 13. h3 cxd4 14. cxd4 Nc6 15. dxe5 dxe5 16. Nf1 Bxe3 17. Nxe3 Be6 18. a3 Qb6 {0-1 (26) Giri,A (2779)-Anand,V (2764) Paris 2019}) 13. Bg5 {[%emt 0:00:57]} f6 {[%emt 0:00:11]} 14. Bh4 {[%emt 0:00:11]} c5 {[%emt 0:00:15][%cal Rc5d4]} 15. b4 {[%emt 0:04:26]} (15. h3 $14) 15... cxb4 $11 {[%emt 0:10:57]} 16. cxb4 {[%emt 0:00:06]} Nc6 {[%emt 0:00:21]} 17. Bb3+ {[%emt 0:04:02]} Kh8 {[%emt 0:00:54]} (17... Be6 $2 18. d5 $18) 18. h3 $132 {[%emt 0:03:30][%mdl 2048] [#] Threatens to win with Bd5. White is fighting back} Nh6 $1 {[%emt 0:00:14]} 19. Bd5 {[%emt 0:00:08]} Bb7 {[%emt 0:00:25]} 20. Nb3 {[%emt 0:02:35]} Qe7 {[%emt 0:05:43]} 21. Qd2 {[%emt 0:04:38]} Rac8 {[%emt 0:28:06]} 22. a3 {[%emt 0:04:45]} Nd8 {[%emt 0:07:37]} (22... Nf7 $11) 23. Bxb7 $14 {[%emt 0:03:06]} Nxb7 {[%emt 0:01:43]} 24. d5 {[%emt 0:04:56]} Rc4 {[%emt 0:01:41]} 25. Rac1 {[%emt 0:00:05]} Rec8 {[%emt 0:08:42]} 26. Rxc4 {[%emt 0:03:09]} bxc4 {[%emt 0:01:18]} 27. Qc3 {[%emt 0:00:06]} Qd7 {[%emt 0:10:31]} ({Better is} 27... g5 $14 28. Bg3 f5) 28. Nbd2 $16 {[%emt 0:00:12][%cal Bb3d2,Bd2c4,Bc4e5][%mdl 32] Black is now going downhill.} g5 {[%emt 0:00:15]} (28... Qb5 $142) 29. Bg3 {[%emt 0:02:14]} (29. Nxc4 $6 Qc7 30. Nxg5 fxg5 $11) 29... g4 {[%emt 0:00:05]} (29... Ng8 $16 {is a better defense.} 30. Nxc4 Ba7) 30. hxg4 $18 {[%emt 0:01:56]} (30. Nxc4 Bxf2+ 31. Bxf2 (31. Kxf2 gxf3 32. Qd3 Qc7 $16) 31... gxf3 $16) 30... Qxg4 {[%emt 0:01:20]} 31. Bh4 {[%emt 0:02:24]} Qg6 {[%emt 0:03:55]} (31... Bd8 $142 32. a4 (32. Nxc4 f5 $16) 32... a5) 32. Nxc4 {[%emt 0:03:30]} Ba7 {[%emt 0:00:12]} 33. Nfd2 {[%emt 0:19:12]} ({Don't take} 33. Ncxe5 Rxc3 34. Nxg6+ Kg7 $18) 33... f5 $2 {[%emt 0:08:05] [#]} (33... Ng4 34. Qh3 Rg8) 34. Nxe5 $1 {[%emt 0:01:54][%mdl 512] White is clearly winning.} Rxc3 {[%emt 0:01:01]} 35. Nxg6+ {[%emt 0:00:04]} Kg7 {[%emt 0:00:05]} 36. Ne7 {[%emt 0:02:57]} f4 {[%emt 0:02:13]} 37. Nf5+ {[%emt 0:01:46]} Kg6 {[%emt 0:01:10]} 38. Nxh6 {[%emt 0:01:41]} Kxh6 {[%emt 0:00:08]} 39. Nf3 {[%emt 0:01:42]} Rxa3 {[%emt 0:02:18]} 40. e5 {[%emt 0:00:18]} dxe5 {[%emt 0:00:35]} 41. Rxe5 {[%emt 0:00:09]} Bb8 {[%emt 0:00:27]} 42. Re6+ {[%emt 0:03:16]} Kh5 {[%emt 0:00:08]} 43. Rb6 {[%emt 0:00:12] Weighted Error Value: White=0.07 (flawless) /Black=0.28 (precise)} 1-0

[Event "3rd VIZAG GM-Open 2022"]
[Site "Visakapatnam"]
[Date "2022.06.13"]
[Round "4.3"]
[White "Stupak, Kirill"]
[Black "Baghdasaryan, Vahe"]
[Result "1-0"]
[ECO "D11"]
[WhiteElo "2440"]
[BlackElo "2267"]
[Annotator "TA"]
[PlyCount "105"]
[EventDate "2022.06.13"]
[EventType "swiss"]
[EventCountry "IND"]
[SourceTitle "playchess.com"]
[Source "ChessBase"]
[SourceQuality "1"]
[TimeControl "5400+30"]

{[%evp 18,105,0,0,0,0,0,0,0,-12,-13,-10,-7,-16,-16,-13,0,-30,-6,-8,0,0,0,0,0,0,0,0,0,0,0,0,30,34,61,50,103,103,103,103,103,103,103,103,104,104,104,104,104,103,103,103,103,103,150,157,157,157,157,149,150,151,532,449,520,520,525,516,504,482,450,457,812,776,759,671,936,934,1429,1158,1949,1588,7193,8798,29968,29968,29970,29973,5350,5186]} 1. Nf3 {[%emt 0:02:24]} d5 {[%emt 0:07:21]} 2. g3 {[%emt 0:00:07]} Nf6 {[%emt 0:00:07]} 3. Bg2 {[%emt 0:00:05]} Bf5 {[%emt 0:01:16]} 4. O-O {[%emt 0:01:06]} e6 {[%emt 0:00:48]} 5. d4 {[%emt 0:00:34]} h6 {[%emt 0:01:01]} 6. c4 {[%emt 0:00:04]} c6 {[%emt 0:00:09]} 7. Nc3 {[%emt 0:00:03]} Be7 {[%emt 0:01:12]} 8. Qb3 {[%emt 0:00:41]} Qb6 {[%emt 0:00:15]} 9. c5 {[%emt 0:00:04]} Qxb3 {[%emt 0:00:08]} 10. axb3 {[%emt 0:00:01]} O-O {[%emt 0:01:01] is more profitable than 10...Na6 at the moment. D11: Slav Defence: 3 Nf3 sidelines and 3...Nf6 4 e3 Bg4.} 11. b4 {[%emt 0:00:14]} a6 {[%emt 0:00:24]} 12. h3 {[%emt 0:08:21]} Nbd7 {[%emt 0:01:24] The position is equal.} 13. g4 {[%emt 0:00:06]} Bh7 {[%emt 0:00:08]} 14. Bf4 {[%emt 0:00:12]} Ne4 {[%emt 0:00:28]} 15. e3 {[%emt 0:00:33]} g5 {[%emt 0:00:12]} 16. Bh2 {[%emt 0:00:08]} f5 {[%emt 0:00:05]} 17. Rfd1 {[%emt 0:13:35]} fxg4 {[%emt 0:12:01]} 18. hxg4 {[%emt 0:00:15] [#]} Ndf6 $146 {[%emt 0:03:17]} ({Predecessor:} 18... Nef6 19. Bh3 Rae8 20. Rac1 Ne4 21. Nxe4 Rxf3 22. Ng3 Ref8 23. Rd2 Bd8 24. Bg2 R3f7 {½-½ (55) Tyutyunnik,R (2204)-Koch,C (2304) LSS email 2019}) 19. Nxe4 {[%emt 0:10:35]} Nxe4 {[%emt 0:00:22]} 20. Rf1 {[%emt 0:00:08]} Bf6 {[%emt 0:27:18]} 21. Be5 {[%emt 0:14:38]} Be7 {[%emt 0:10:07]} 22. Bh2 {[%emt 0:15:11]} Bf6 {[%emt 0:06:26]} 23. Be5 {[%emt 0:01:43]} Be7 {[%emt 0:07:05]} 24. Bc7 {[%emt 0:00:02]} h5 {[%emt 0:06:46]} 25. gxh5 {[%emt 0:00:42]} g4 {[%emt 0:00:04]} 26. Nh2 {[%emt 0:02:23]} Nd2 {[%emt 0:00:16]} (26... Nf6 $14) 27. Rfd1 $16 {[%emt 0:04:35]} (27. Nxg4 Nxf1 28. Kxf1 (28. Bxf1 Be4 $11) 28... Bd3+ 29. Ke1 Kh7 $14) 27... Nf3+ {[%emt 0:00:09]} 28. Nxf3 {[%emt 0:00:56]} gxf3 {[%emt 0:00:05]} 29. Bh3 {[%emt 0:00:03]} Bf5 {[%emt 0:00:07]} 30. Kh2 {[%emt 0:00:06][%cal Bg1h2,Bh2h3,Bh3g3][%mdl 32]} Kh7 {[%emt 0:06:20]} 31. Rg1 {[%emt 0:00:33]} Bxh3 {[%emt 0:04:34]} 32. Kxh3 {[%emt 0:00:10] Strongly threatening Rg6.} Rf5 {[%emt 0:00:03]} 33. Bf4 {[%emt 0:04:17]} Bf6 {[%emt 0:01:27][%cal Of6d4]} 34. Rg4 {[%emt 0:03:45]} Rf8 {[%emt 0:01:25]} 35. Kg3 {[%emt 0:00:05]} e5 {[%emt 0:02:10]} (35... Rxh5 $142 36. Bd6 (36. Kxf3 e5 $14) 36... Rf7) 36. dxe5 {[%emt 0:01:07]} Bxe5 {[%emt 0:00:02]} 37. Bxe5 {[%emt 0:00:16]} ({Don't play} 37. Kxf3 $6 Bxb2 38. Rb1 Bf6 $11) 37... Rxe5 {[%emt 0:00:01][%mdl 4096] Endgame KRR-KRR} 38. Rh1 $1 {[%emt 0:00:05]} Kh6 {[%emt 0:02:51] [#]} 39. Rhh4 $1 {[%emt 0:01:24]} Rxe3 $2 {[%emt 0:00:14] Black cannot hold the game after this.} (39... Rxh5 $16 40. Rxh5+ Kxh5) 40. Rg6+ $18 {[%emt 0:09:25]} ({Weaker is} 40. fxe3 f2 41. Rg6+ Kh7 $16) 40... Kh7 {[%emt 0:00:01]} 41. fxe3 {[%emt 0:00:06] White wants to mate with Rf4.} f2 {[%emt 0:00:02]} 42. Rh1 {[%emt 0:00:04]} f1=Q {[%emt 0:00:07]} 43. Rxf1 {[%emt 0:00:01]} Rxf1 {[%emt 0:00:06] KR-KR} 44. Re6 {[%emt 0:00:03]} Rb1 {[%emt 0:02:33]} (44... Rc1 $142 45. Re7+ Kh6 46. Rxb7 Rc4) 45. Re7+ {[%emt 0:00:13]} Kh6 {[%emt 0:00:01]} 46. Rxb7 {[%emt 0:00:06]} Rxb2 {[%emt 0:00:04]} 47. Rb6 {[%emt 0:00:08][%csl LRa6,LRc6]} Kxh5 {[%emt 0:00:47] [#]} 48. Kf4 $1 {[%emt 0:00:11]} Rb3 {[%emt 0:00:27]} 49. Rxc6 {[%emt 0:00:35]} Rxb4+ {[%emt 0:00:05]} 50. Ke5 {[%emt 0:00:03]} Re4+ {[%emt 0:01:18]} 51. Kxd5 {[%emt 0:00:02]} Rxe3 {[%emt 0:00:04]} 52. Rxa6 {[%emt 0:00:15]} Kg5 {[%emt 0:00:02]} 53. c6 {[%emt 0:00:28] Weighted Error Value: White=0.02 (flawless) /Black=0.47} 1-0

[Event "3rd VIZAG GM-Open 2022"]
[Site "Visakapatnam"]
[Date "2022.06.13"]
[Round "4.4"]
[White "Bharat Kumar Reddy Poluri"]
[Black "Nitin, S.."]
[Result "1/2-1/2"]
[ECO "B74"]
[WhiteElo "2224"]
[BlackElo "2399"]
[Annotator "TA"]
[PlyCount "36"]
[EventDate "2022.06.13"]
[EventType "swiss"]
[EventCountry "IND"]
[SourceTitle "playchess.com"]
[Source "ChessBase"]
[SourceQuality "1"]
[TimeControl "5400+30"]

{[%evp 21,36,-10,0,-35,-40,-26,56,-25,30,-33,43,-17,43,-31,67,-18,50]} 1. e4 {[%emt 0:00:04]} c5 {[%emt 0:00:34]} 2. Nf3 {[%emt 0:00:21]} g6 {[%emt 0:01:17]} 3. d4 {[%emt 0:01:27]} cxd4 {[%emt 0:00:09]} 4. Nxd4 {[%emt 0:01:17]} Nc6 {[%emt 0:01:25]} 5. Nc3 {[%emt 0:00:55]} Bg7 {[%emt 0:00:21]} 6. Be3 {[%emt 0:00:12]} Nf6 {[%emt 0:00:56]} 7. Be2 {[%emt 0:00:41]} O-O {[%emt 0:00:34]} 8. Nb3 {[%emt 0:00:46]} b6 {[%emt 0:03:17]} 9. f4 {[%emt 0:01:44]} d6 {[%emt 0:01:45]} 10. O-O {[%emt 0:00:41]} Bb7 {[%emt 0:00:06]} 11. Bf3 {[%emt 0:01:04]} Nd7 {[%emt 0:00:11]} 12. Kh1 {[%emt 0:02:11] B74: Sicilian Dragon: Classical System with 9 Nb3.} Rc8 {[%emt 0:01:22]} 13. Qd2 {[%emt 0:01:24] [#]} a6 $146 {[%emt 0:04:29]} (13... Bxc3 $11 14. bxc3 Qc7) ({Predecessor:} 13... Re8 14. Rad1 Nc5 15. Qf2 Bxc3 16. bxc3 Ba6 17. Rfe1 Na4 18. Bd2 Nb8 19. Qd4 Nb2 {0-1 (66) Varas Gonzalez,C (2259)-Romero Holmes,A (2501) Bergara 2012}) 14. Bg4 {[%emt 0:05:59]} (14. e5 $1 $14) 14... Ncb8 {[%emt 0:30:40]} (14... Bxc3 $142 15. bxc3 (15. Qxc3 $2 Nce5 $19) 15... Ncb8) 15. Bf3 {[%emt 0:10:13]} (15. Bd4 $11) 15... Nc6 {[%emt 0:00:07]} (15... Bxc3 $15 16. bxc3 Qc7) 16. Bg4 {[%emt 0:00:09]} (16. e5 $14) 16... Ncb8 {[%emt 0:00:05]} (16... Bxc3 $11 17. bxc3 (17. Qxc3 $2 Nce5 $19) 17... Ncb8) 17. Bf3 {[%emt 0:00:10]} (17. Bd4 $14) 17... Nc6 {[%emt 0:00:03]} (17... Bxc3 $15 18. bxc3 Qc7) 18. Bg4 {[%emt 1:10:12] White is more active.} ({White should try} 18. e5 $1 $14) 18... Ncb8 {[%emt 0:52:09] Weighted Error Value: White=0.63/Black=0.60} (18... Bxc3 $11 19. bxc3 (19. Qxc3 $2 Nce5 $19) 19... Ncb8) 1/2-1/2

[Event "3rd VIZAG GM-Open 2022"]
[Site "Visakapatnam"]
[Date "2022.06.13"]
[Round "4.5"]
[White "Nguyen, Van Huy"]
[Black "Aditya Varun Gampa"]
[Result "1/2-1/2"]
[ECO "E03"]
[WhiteElo "2405"]
[BlackElo "1836"]
[Annotator "TA"]
[PlyCount "66"]
[EventDate "2022.06.13"]
[EventType "swiss"]
[EventCountry "IND"]
[SourceTitle "playchess.com"]
[Source "ChessBase"]
[SourceQuality "1"]
[TimeControl "5400+30"]

{[%evp 21,66,31,29,27,16,15,19,18,18,18,33,32,33,18,22,25,20,12,43,47,52,36,41,40,46,38,98,43,39,35,75,70,65,59,56,22,29,45,31,22,31,34,36,14,29,4,29]} 1. d4 {[%emt 0:00:08]} Nf6 {[%emt 0:00:03]} 2. Nf3 {[%emt 0:00:18]} d5 {[%emt 0:00:06]} 3. c4 {[%emt 0:00:21]} e6 {[%emt 0:00:03]} 4. g3 {[%emt 0:00:14]} dxc4 {[%emt 0:00:48]} 5. Qa4+ {[%emt 0:00:46]} Nbd7 {[%emt 0:00:29]} 6. Qxc4 {[%emt 0:00:53]} a6 {[%emt 0:00:21]} 7. Bg2 {[%emt 0:01:43]} b5 {[%emt 0:00:20]} 8. Qc6 {[%emt 0:00:59]} Rb8 {[%emt 0:01:53]} 9. Bf4 {[%emt 0:01:45]} Nd5 {[%emt 0:01:43]} 10. Bg5 {[%emt 0:01:20]} Be7 {[%emt 0:02:47]} 11. Bxe7 {[%emt 0:01:26]} Qxe7 {[%emt 0:00:09]} 12. Nc3 {[%emt 0:06:52] E03: Open Catalan: 5 Qa4+ Nbd7 6 Qxc4.} Bb7 {[%emt 0:05:59] [#]} 13. Nxd5 $1 {[%emt 0:01:53]} Bxc6 {[%emt 0:00:02]} 14. Nxe7 {[%emt 0:00:11]} Kxe7 {[%emt 0:00:02]} 15. Rc1 {[%emt 0:03:32]} Bd5 {[%emt 0:12:11]} 16. Rxc7 {[%emt 0:06:00][%cal Of3e5] Strongly threatening Ne5!} Rhc8 {[%emt 0:03:26] [#]} 17. Rxc8 $146 {[%emt 0:00:35]} ({Predecessor:} 17. Ra7 Ra8 18. Rxa8 Bxa8 19. Kd2 Nf6 20. Rb1 Ng4 21. Ke1 Be4 22. Rd1 Rc2 23. h3 Nf6 24. Rd2 Rc1+ 25. Rd1 Rc2 {½-½ (25) Ivanchuk,V (2717)-Leko,P (2713) Monte Carlo 2002}) 17... Rxc8 {[%emt 0:00:07]} 18. Kd2 {[%emt 0:00:19] Prevents Rc2+.} Nf6 {[%emt 0:03:44]} 19. Ne1 {[%emt 0:07:48]} Bxa2 {[%emt 0:00:47]} (19... Rc4 $5 {[%cal Rc4d4]}) 20. Nd3 {[%emt 1:03:27] Hoping for Ra1.} Bd5 {[%emt 0:15:11]} 21. Bxd5 {[%emt 0:00:00]} Nxd5 $14 {[%emt 0:01:04][%mdl 4096] Endgame KRN-KRN} 22. Ra1 {[%emt 0:00:00]} Ra8 {[%emt 0:06:15]} 23. Rc1 {[%emt 0:00:00]} Kd6 {[%emt 0:03:40] [#]} (23... Kd8 $14) 24. e4 {[%emt 0:00:00]} ({Better is} 24. Ne5 $1 $16 {[%cal Re5f7]}) 24... Ne7 {[%emt 0:00:56]} 25. f4 {[%emt 0:00:00][%cal Bf2f4,Bf4f5][%mdl 32]} Nc6 {[%emt 0:03:04]} 26. Ke3 {[%emt 0:00:00]} a5 {[%emt 0:02:50]} 27. f5 {[%emt 0:00:00]} Nb4 {[%emt 0:03:42]} 28. Rc5 {[%emt 0:00:00] And now Nxb4 would win.} (28. Ne5 $5 {[%cal Re5f7]} Rf8 29. fxe6 fxe6 30. Rc5 $16) 28... Nxd3 {[%emt 0:00:28]} 29. Kxd3 {[%emt 0:00:00]} Rb8 {[%emt 0:01:21]} 30. Kc3 {[%emt 0:00:00]} exf5 {[%emt 0:01:46]} 31. Rxf5 {[%emt 0:00:00]} f6 {[%emt 0:00:36]} 32. Rc5 {[%emt 0:00:00]} Rb7 {[%emt 0:01:23]} 33. Kb3 {[%emt 0:00:00]} Rb8 {[%emt 0:02:46] Weighted Error Value: White=0.08 (flawless) /Black=0.08 (flawless)} 1/2-1/2